Cogmind - Beta 11.2 @@@ ROGUE MODE // 2023.01.05 @ 17:41:21 Player: Richard Blunt Result: Destroyed by G-47 Trooper with Particle Gun Performance ------------- Evolutions (0) 0 Regions Visited (4) 800 Robots Destroyed (34) 170 Value Destroyed (632) 632 Prototype IDs (23) 460 Alien Tech Used (0) 0 Bonus (300) 300 TOTAL SCORE: 2362 Bonus ------- Aligned with FarCom 300 Cogmind --------- Core Integrity 0/250 Matter 161/300 Energy 265/265 System Corruption 1% Temperature Warm (151) Movement Rolling (125) Ox3 Location -9/Mines Parts ------- > --- POWER (1) -------- Improved Ion Engine > --- PROPULSION (2) --- Light Treads Wheel > --- UTILITY (2) ------ Large Storage Unit > --- WEAPON (2) ------- Improved Light Cannon Improved Light Cannon > --- INVENTORY (15) --- Compact Wheel High-capacity Storage Unit Huge Storage Unit Huge Storage Unit High-capacity Matter Pod (200) High-capacity Matter Pod (200) Signal Interpreter Seismic Detector Authchip [Armor] Grenade Launcher Mining Laser Peak State ------------ > --- POWER ------------ Improved Ion Engine > --- PROPULSION ------- Light Treads Wheel > --- UTILITY ---------- Large Storage Unit Trap Reconfigurator > --- WEAPON ----------- Improved Light Cannon Improved Light Cannon > --- INVENTORY -------- Nuclear Core Reinforced Deuterium Engine Fission Core Compact Wheel High-capacity Storage Unit Huge Storage Unit Huge Storage Unit High-capacity Matter Pod High-capacity Matter Pod Signal Interpreter Seismic Detector Authchip [Armor] Improved Light Cannon Grenade Launcher Mining Laser [Rating: 20] Favorites ----------- Power Improved Ion Engine Engine Improved Ion Engine Propulsion Wheel Treads Light Treads Wheel Wheel Utility Huge Storage Unit Device Seismic Detector Storage Huge Storage Unit Protection Light Armor Plating Weapon Improved Light Cannon Energy Gun Small Laser Ballistic Gun Assault Rifle Ballistic Cannon Improved Light Cannon Launcher Grenade Launcher Build | -11 -10 -10 -10 -9 ------- Run | Scr Mat Min Exi Min Slots Evolved . | . . . . . Power . | . . . . . Propulsion . | . . . . . Utility . | . . . . . Weapon . | . . . . . Parts Attached 26 | 8 12 . 2 4 Power 3 | 1 2 . . . Engine 3 | 1 2 . . . Core . | . . . . . Reactor . | . . . . . Propulsion 5 | 2 3 . . . Treads 2 | 1 1 . . . Leg . | . . . . . Wheel 3 | 1 2 . . . Hover . | . . . . . Flight . | . . . . . Utility 8 | 2 4 . 2 . Device 3 | 1 . . 2 . Storage 4 | 1 3 . . . Processor . | . . . . . Hackware . | . . . . . Protection 1 | . 1 . . . Artifact . | . . . . . Weapon 10 | 3 3 . . 4 Energy Gun 1 | 1 . . . . Energy Cannon . | . . . . . Ballistic Gun 2 | 2 . . . . Ballistic Cannon 5 | . 3 . . 2 Launcher 2 | . . . . 2 Special Weapon . | . . . . . Impact Weapon . | . . . . . Slashing Weapon . | . . . . . Piercing Weapon . | . . . . . Special Melee Weapon . | . . . . . Unidentified Prototypes . | . . . . . Parts Lost 7 | . 6 . . 1 Power 1 | . 1 . . . Propulsion 2 | . 2 . . . Utility 1 | . 1 . . . Weapon 3 | . 2 . . 1 Highest Loss Streak 5 | . 5 . . 1 To Critical Strikes . | . . . . . Average Slot Usage (%) 98 | . 99 100 95 81 Engine 14 | . 14 14 14 14 Treads 14 | . 14 14 14 14 Wheel 14 | . 14 14 14 14 Storage 18 | . 16 28 24 14 Protection 7 | . 10 . . . Ballistic Gun 9 | . 13 . . . Ballistic Cannon 18 | . 14 28 28 21 Naked Turns . | . . . . . Heaviest Build 99 | 14 99 39 39 30 Greatest Support 20 | 10 20 10 10 10 Greatest Overweight (x) 9 | 1 9 3 3 2 Average Overweight (x) 4 | . 6 3 3 2 Largest Inventory Capacity 25 | 8 25 15 15 15 Average Capacity 18 | 7 21 15 15 15 Most Carried 15 | 5 11 11 15 12 Average Carried 10 | 3 9 11 13 11 Final Capacity 15 | 8 15 15 15 15 Final Carried 12 | 5 11 11 12 11 Class Distribution -------------------- 100% | Mutant Dominant Class ---------------- Mutant | -10/Materials Mutant | -10/Mines Mutant | -10/Exiles Mutant | -9/Mines Resources | -11 -10 -10 -10 -9 ----------- Run | Scr Mat Min Exi Min Matter Collected 1380 | 325 505 . 546 4 Remotely . | . . . . . Salvage Created 745 | 162 478 . . 105 Parts 60 | 13 34 . . 13 Haulers Intercepted 1 | . 1 . . . Recyclers Shooed 2 | . . . . 2 Parts Field Recycled . | . . . . . Retrieved Matter . | . . . . . Parts Self-Destructed . | . . . . . Prevented . | . . . . . Kills | -11 -10 -10 -10 -9 ------- Run | Scr Mat Min Exi Min Combat Hostiles Destroyed 25 | . 16 . . 9 Guns 10 | . 10 . . . Cannons 7 | . 6 . . 1 AOE 8 | . . . . 8 Classes Destroyed 8 | 2 5 . . 1 Worker 1 | . 1 . . . Tunneler 4 | 4 . . . . Hauler 1 | . 1 . . . Recycler 1 | 1 . . . . Watcher 2 | . 2 . . . Swarmer 13 | . 6 . . 7 Grunt 11 | . 10 . . 1 Brawler 1 | . . . . 1 Best Kill Streak 9 | 5 4 . . 9 Combat Bots Only 9 | . 3 . . 9 Max Kills in Single Turn 4 | 1 2 . . 4 Gunslinging 1 | . 1 . . . Exploded 4 | . . . . 4 Melee . | . . . . . Uniques/NPCs Destroyed . | . . . . . Combat | -11 -10 -10 -10 -9 -------- Run | Scr Mat Min Exi Min Damage Taken 1382 | . 1090 . 25 267 Core 251 | . 174 . . 77 Absorbed by Shields . | . . . . . Core Remaining (%) 100 | 100 . . . . Volleys Fired 114 | 12 93 . 1 8 Largest 2 | 2 2 . 2 2 Hottest 78 | 60 78 . 78 78 Shots Fired 215 | 24 175 . 2 14 Gun 124 | 24 100 . . . Cannon 87 | . 75 . 2 10 Launcher 4 | . . . . 4 Special . | . . . . . Kinetic 208 | 21 175 . 2 10 Thermal 3 | 3 . . . . Explosive 4 | . . . . 4 Electromagnetic . | . . . . . Robot Hit Streak 6 | 5 6 . . 5 Robot Miss Streak 7 | 5 7 . . 1 Penetration Max . | . . . . . Secondary Targets 1 | . 1 . . . Max Gunslinging Chain 1 | . 1 . . . Shots Hit Robots 112 | 13 91 . . 8 Core Hits 49 | 6 31 . . 12 Critical Kills . | . . . . . Critical Parts Destroyed 1 | . 1 . . . Critical Strikes 2 | . 2 . . . Destroy 1 | . 1 . . . Blast 1 | . 1 . . . Melee Attacks . | . . . . . Impact . | . . . . . Slashing . | . . . . . Piercing . | . . . . . Sneak Attacks . | . . . . . Combat Hostiles . | . . . . . Follow-up Attacks . | . . . . . Damage Inflicted 2225 | 155 1494 . . 576 Guns 854 | 155 699 . . . Cannons 934 | . 795 . . 139 Explosions 437 | . . . . 437 Melee . | . . . . . Ramming . | . . . . . Kinetic 1755 | 122 1494 . . 139 Thermal 33 | 33 . . . . Explosive 437 | . . . . 437 Electromagnetic . | . . . . . Impact . | . . . . . Slashing . | . . . . . Piercing . | . . . . . Highest Corruption 1 | . 1 1 1 1 Average Corruption 1 | . 1 1 1 1 Corruption Purged . | . . . . . Corruption Blocked . | . . . . . Effects 13 | . 8 . 5 . Message Errors 4 | . 1 . 3 . Matter Fused 4 | . 3 . 1 . Heat Flow Errors 1 | . . . 1 . Energy Discharges 2 | . 2 . . . Data Loss (minor) 1 | . 1 . . . Weapon Failures 1 | . 1 . . . Overload Shots . | . . . . . Overflow Damage 19 | . 3 . . 16 Projectiles 3 | . 3 . . . Explosions 16 | . . . . 16 Melee . | . . . . . Knockbacks 10 | . 7 . . 3 Impact . | . . . . . Kinetic 10 | . 7 . . 3 Secondary . | . . . . . Self-Inflicted Damage 20 | . . . . 20 Shots 1 | . . . . 1 Rammed . | . . . . . Targets Rammed . | . . . . . Kicked . | . . . . . Crushed . | . . . . . Highest Temperature 437 | . 437 . 275 142 Average Temperature 103 | . 105 . 138 52 Received Heat Transfer 660 | . 546 . . 114 Effects 3 | . 3 . . . Shutdowns 1 | . 1 . . . Short Circuit 1 | . 1 . . . Damage (minor) 1 | . 1 . . . Siege Activations . | . . . . . Robots Corrupted . | . . . . . Combat Hostiles . | . . . . . Parts Fried . | . . . . . Impact Corruptions . | . . . . . Robots Melted . | . . . . . Combat Hostiles . | . . . . . Parts Melted . | . . . . . Heat Transferred 75 | 75 . . . . Parts Sabotaged . | . . . . . Parts Stolen . | . . . . . Parts Stripped . | . . . . . Power Chain Reactions . | . . . . . Missiles Intercepted . | . . . . . Alert | -11 -10 -10 -10 -9 ------- Run | Scr Mat Min Exi Min Peak Influence 318 | 25 318 46 . 293 Initial 46 | . 16 46 . . Average 146 | 10 162 46 . 186 Maximum Alert Level 1 | . 1 . . 1 Low Security (%) 71 | 100 68 100 . 55 Level 1 28 | . 31 . . 44 Level 2 . | . . . . . Level 3 . | . . . . . Level 4 . | . . . . . Level 5 . | . . . . . High Security . | . . . . . Max Security . | . . . . . Squads Dispatched 5 | . 5 . . . Investigation 2 | . 2 . . . Extermination . | . . . . . Reinforcement 3 | . 3 . . . Assault . | . . . . . Garrison . | . . . . . Intercept . | . . . . . Searches Triggered . | . . . . . Construction Impeded . | . . . . . Haulers Reinforced . | . . . . . Active Scanning Responses . | . . . . . Cargo Convoy Interrupts . | . . . . . Stealth | -11 -10 -10 -10 -9 --------- Run | Scr Mat Min Exi Min Distress Signals 3 | . 3 . . . Communications Jammed . | . . . . . Distress Signals . | . . . . . Times Spotted 37 | . 26 . . 11 Peak Tracking Total 9 | . 3 . 9 6 Tactical Retreats . | . . . . . Traps | -11 -10 -10 -10 -9 ------- Run | Scr Mat Min Exi Min Traps Triggered 1 | . 1 . . . Indirectly . | . . . . . Trap Hack Attempts . | . . . . . Triggered . | . . . . . Disarmed . | . . . . . Reprogrammed . | . . . . . Reused . | . . . . . Traps Extracted . | . . . . . Installed . | . . . . . Triggered . | . . . . . Exploded 3 | . . . 3 . Machines | -11 -10 -10 -10 -9 ---------- Run | Scr Mat Min Exi Min Machines Disabled 2 | . 1 . 1 . Max in Single Turn 1 | . 1 . 1 . Machines Sabotaged . | . . . . . Garrisons Compromised . | . . . . . Overloaded Fab Kills . | . . . . . Hacking | -11 -10 -10 -10 -9 --------- Run | Scr Mat Min Exi Min Machines Accessed 6 | . 4 . 2 . Terminals 3 | . 3 . . . Fabricators . | . . . . . Repair Stations . | . . . . . Recycling Units 1 | . 1 . . . Scanalyzers . | . . . . . Garrison Access . | . . . . . Total Hacks 14 | . 12 . 2 . Successful 8 | . 6 . 2 . Failed 6 | . 6 . . . Catastrophic 1 | . 1 . . . Database Lockouts . | . . . . . Manual 10 | . 9 . 1 . Terminals 10 | . 10 . . . Fabricators . | . . . . . Repair Stations . | . . . . . Recycling Units 2 | . 2 . . . Scanalyzers . | . . . . . Garrison Access . | . . . . . Terminal Hacks 7 | . 5 . 2 . Record 1 | . . . 1 . Robot Analysis 4 | . 4 . . . Locate Traps 1 | . 1 . . . EX-Prototype ID Bank 1 | . . . 1 . Fabricator Hacks . | . . . . . Repair Station Hacks . | . . . . . Recycling Unit Hacks . | . . . . . Scanalyzer . | . . . . . Garrison Access Hacks . | . . . . . Unauthorized Hacks 1 | . 1 . . . Terminals . | . . . . . Fabricators . | . . . . . Repair Stations . | . . . . . Recycling Units 1 | . 1 . . . Tunnel 1 | . 1 . . . Scanalyzers . | . . . . . Garrison Access . | . . . . . Data Cores Recovered . | . . . . . Used . | . . . . . Hacking Detections 3 | . 3 . . . Full Trace Events 2 | . 2 . . . Feedback Events . | . . . . . Feedback Blocked . | . . . . . Robot Schematics Acquired . | . . . . . Robots Built . | . . . . . Authchips . | . . . . . Time . | . . . . . Total Robot Build Rating . | . . . . . Part Schematics Acquired . | . . . . . Parts Built . | . . . . . Authchips . | . . . . . Time . | . . . . . Total Part Build Rating . | . . . . . Parts Repaired . | . . . . . Time . | . . . . . Parts Recycled . | . . . . . Recycled Matter . | . . . . . Retrieved Matter . | . . . . . Retrieved Components . | . . . . . Parts Scanalyzed . | . . . . . Part Schematics Acquired . | . . . . . Parts Damaged . | . . . . . Bothacking | -11 -10 -10 -10 -9 ------------ Run | Scr Mat Min Exi Min Used RIF Installer . | . . . . . Robots Hacked . | . . . . . Non-combat . | . . . . . Combat . | . . . . . Robot Hacks Applied . | . . . . . Relay Couplers Released . | . . . . . Fabnet Peak Effective % . | . . . . . Robots Rewired . | . . . . . Allies Hacked . | . . . . . Hacks Repelled . | . . . . . Allies | -11 -10 -10 -10 -9 -------- Run | Scr Mat Min Exi Min Total Allies . | . . . . . Largest Group . | . . . . . Highest-Rated Group . | . . . . . Highest-Rated Ally . | . . . . . Total Orders . | . . . . . Ally Attacks . | . . . . . Total Damage . | . . . . . Kills . | . . . . . Allies Corrupted . | . . . . . Allies Melted . | . . . . . Intel | -11 -10 -10 -10 -9 ------- Run | Scr Mat Min Exi Min Robot Analysis Total 4 | . 4 . . . Derelict Logs Recovered . | . . . . . Drone Launches . | . . . . . Drone Recoveries . | . . . . . Exploration | -11 -10 -10 -10 -9 ------------- Run | Scr Mat Min Exi Min Turns Passed 2021 | 115 1287 57 528 34 Spaces Moved 1065 | 62 539 46 412 6 Core 1 | 1 . . . . Treads 3 | . 3 . . . Legs . | . . . . . Wheels 1061 | 61 536 46 412 6 Hover . | . . . . . Flight . | . . . . . Fastest Speed 50 | 50 95 125 125 110 Average Speed 149 | 91 178 125 125 110 Slowest Speed 480 | 95 480 125 125 110 Overloaded Moves . | . . . . . Propulsion Burnouts . | . . . . . Robots Hopped . | . . . . . Cave-ins Triggered . | . . . . . Exploration Rate (%) 36 | 5 83 16 70 7 Regions Visited 4 Branch Regions 3 Pre-discovered Areas 2 | . 1 . 1 . Known Exits Taken . | . . . . . Unknown Exits Taken 4 | 1 1 1 1 . Scrap Searched . | . . . . . Spaces Dug 15 | . . . . 15 Terrain Destroyed 33 | . 1 . . 32 Melee . | . . . . . Projectile 3 | . 1 . . 2 AOE 30 | . . . . 30 Terrain Rammed . | . . . . . Walls Destroyed . | . . . . . Machines Disabled . | . . . . . Actions | -11 -10 -10 -10 -9 --------- Run | Scr Mat Min Exi Min Total 1285 | 94 703 45 425 18 Wait 41 | 8 33 . . . Move 1061 | 61 538 45 411 6 Hop . | . . . . . Pick Up 26 | 5 17 . 4 . Fast Attach 11 | 7 2 . 2 . Attach 7 | . 6 . . 1 Detach 2 | . 1 . 1 . Swap 8 | 1 4 . . 3 Drop 15 | . 9 . 6 . Fire 114 | 12 93 . 1 8 Melee . | . . . . . Ram . | . . . . . Kick . | . . . . . Crush . | . . . . . Escape Stasis . | . . . . . Rewire . | . . . . . Trap . | . . . . . Miscellaneous . | . . . . . Route ------- -11/Scrapyard -10/Materials (discovered 3 exits: [*Mat x2] / [*Min]) -10/Mines -10/Exiles -9/Mines History --------- Turn | Location | Event 15 | -11/Scrapyard | Discovered new exit (range 16) 116 | -11/Scrapyard | Entered Materials 296 | -10/Materials | Discovered new exit (range 8) 316 | -10/Materials | Build established: Mutant 387 | -10/Materials | Discovered new exit (range 11) 534 | -10/Materials | Discovered new exit (range 5) 1187 | -10/Materials | Core integrity fell below 50% 1205 | -10/Materials | Lost 5 parts (1p1n1u2w) 1403 | -10/Materials | Entered Mines 1452 | -10/Mines | Deemed a non-threat by the Exiles lab entrance 1453 | -10/Mines | Discovered new exit (range 5) 1460 | -10/Mines | Entered Exiles 1496 | -10/Exiles | Met 8R-AWN 1516 | -10/Exiles | Met EX-HEX 1587 | -10/Exiles | Met EX-DEC 1619 | -10/Exiles | Learned location of Zion (-6) 1715 | -10/Exiles | Discovered new exit (range 14) 1792 | -10/Exiles | Met EX-BIN 1807 | -10/Exiles | Aligned with FarCom system 1809 | -10/Exiles | Given EX-Vault access code 1837 | -10/Exiles | Opened EX-Vault 1845 | -10/Exiles | Found PSU Rigger 1851 | -10/Exiles | Found Trap Reconfigurator 1881 | -10/Exiles | Warned to stay clear of 0b10 Research branches 1947 | -10/Exiles | Attacked by the Exiles 1988 | -10/Exiles | Entered Mines 2009 | -9/Mines | Core integrity fell below 20% 2022 | -9/Mines | Destroyed by G-47 Trooper with Particle Gun Last Messages --------------- 01990_ S-10 Pest destroyed. 01992_ Imp. Light Cannon destroyed. 01996_ Acquired 4 matter. 02001_ B-36 Bruiser destroyed. 02002_ U-05 Engineer lays Concrete. 02003_ U-05 Engineer builds a Wall. 02004_ G-34 Mercenary knocked back. 02004_ Destroyed Com. Wheel. 02007_ C-30 ARC bursts open, deploying its payload. 02007_ S-10 Pest unfolds itself. 02007_ U-05 Engineer lays Concrete. 02007_ S-10 Pest destroyed. 02007_ Destroyed Com. Wheel. 02007_ S-10 Pest destroyed. 02008_ U-05 Engineer builds a Wall. 02014_ G-34 Mercenary knocked back. 02017_ G-34 Mercenary destroyed. 02018_ U-05 Engineer lays Concrete. 02020_ G-34 Mercenary knocked back. 02020_ U-05 Engineer lays Concrete. Map ----- +----------------------------------------------------+ | ????????????????????????????????????????? | | ????????????????????????????????????????? | | ????????????????????????????????????????? | | ????????????????????????????????????????? | | ????????????????????????????????????????? | | ????????????????????????????????????????? | | ????????????????????????????????????????? | | ????????????????????????????????????????? | | ????????????????????????????????????????? | | ????????????????????????????????????????? | | ????????????????????????????????????????? | | ????????????????????????????????????????? | | ????????????????????????????????????????? | | ????????????????????????????????????????? | | ????????????????????????????????????????? | | ????????????????????????????????????????? | | ????????????????????????????###?????????? | | ??????????????????????????? ##????????? | | ??????????????????????????? #????????? | | ??????????????????????????? #????????? | | ??????????????????????????? #????????? | | ??????????????????????????? #????????? | | ???????????????????##????##g #?????????? | | ??????????????????## ##### g #??????????? | | ??????????????????# =*# ###?????? | | ??????????????????# = @ =[% #?????? | | ??????????????????# =%/ [%% #?????? | | ?????????????????# u## = #?????? | | ?????????????????# # % ### #?????? | | ?????????????????## %% #??? #?????? | | ??????????????????## ???? #?????? | | ?????????????????? %[ ????? #?????? | | ????????????????? %* ;#?????#?????? | | ???????????????? =%% #####???????????? | | ??????????????? ##= #???????????????? | | ??????????????"" ?# ###????????????????? | | ???????????????" ??##???????????????????? | | ????????????????????????????????????????? | | ????????????????????????????????????????? | | ????????????????????????????????????????? | | ????????????????????????????????????????? | | ????????????????????????????????????????? | | ????????????????????????????????????????? | | ????????????????????????????????????????? | | ????????????????????????????????????????? | | ????????????????????????????????????????? | | ????????????????????????????????????????? | | ????????????????????????????????????????? | | ????????????????????????????????????????? | | ????????????????????????????????????????? | +----------------------------------------------------+ Best States ------------- Heat Dissipation 25 Energy Generation 12 Energy Capacity 265 Matter Stores 500 Matter Capacity 500 Sight Range 16 Terrain Scan Density 10 Armor Coverage 150 Evasion (%) 44 Recoil Reduction 1 Authchip Count 1 Item Schematics ----------------- None Robot Schematics ------------------ None Fabricated ------------ Nothing Alien Tech Used ----------------- None Achievements -------------- None Challenges ------------ None Game ------ Seed FluxGravitonShield Manual? 0 Play Time 00:22:58 Cumulative 130.3 hours Start 2023.01.04 @ 20:08:15 End 2023.01.05 @ 17:41:21 Sessions 2 Manual Loads 0 Difficulty Rogue Special Mode None Game No. 46 Rogue 46 Adventurer 0 Explorer 0 Win Type - Total 1 Types 1/0/0/0/0/0/0/0/0 Lore% 47 Gallery% 54 Achievement% 45 Wizard Run 0 Options --------- ASCII 0 Keyboard 1 Movement Vi Keybinds 0 Fullscreen 1 Font 18/SmallcapsGlow Map View 76x50 Tactical HUD 1 Map Filters NONE Filters NONE Steam 1 RUN: c3ca81f0-4c73-4b04-a04f-6177218fed67